bitfinex/quotes_SOLUSD_20250814
["timestamp","ask_amount","ask_price","bid_price","bid_amount"]
[1755186495100,1e-08,195.46,195.45,323.09276062]
[1755186495686,1e-08,195.5,195.49,71.80621557]
[1755186495887,1e-08,195.5,195.49,344.31789767]
[1755186496101,1e-08,195.5,195.49,343.80636256]
[1755186496601,0.66000001,195.5,195.49,133.59549815]
[1755186496795,0.66000001,195.5,195.49,30.7]
[1755186496993,0.66000001,195.5,195.48,30.7]
[1755186497186,0.66,195.49,195.48,30.7]
[1755186497387,0.66,195.49,195.48,61.81561285]
[1755186498331,18.740147,195.49,195.4,18.080147]
[1755186498480,18.080147,195.46,195.4,18.080147]
[1755186498812,18.080147,195.46,195.4,16.77363109]
[1755186498813,0.66,195.45,195.4,16.77363109]
[1755186498982,0.66,195.45,195.41,11.65596846]
[1755186499178,0.66,195.45,195.41,26.0]
[1755186499906,0.66,195.45,195.39,0.03]
[1755186500085,0.66,195.45,195.39,5.14789303]
[1755186500420,0.66,195.45,195.4,0.03]
[1755186500708,11.65596846,195.42,195.4,0.03]
[1755186501010,12.31596846,195.41,195.37,0.03]
[1755186501217,11.65596846,195.39,195.37,0.03]
[1755186501426,0.66,195.38,195.37,0.03]
[1755186501720,0.66,195.41,195.37,11.68596846]
[1755186501890,0.66,195.4,195.39,11.65596846]
[1755186502306,0.66,195.4,195.37,0.03]
[1755186503105,18.10544236,195.39,195.37,0.03]
[1755186503312,0.66,195.38,195.37,0.03]
[1755186503923,18.76544236,195.38,195.37,0.03]
[1755186504217,18.10544236,195.34,195.28,49.25608348]
[1755186504417,0.66,195.33,195.28,31.15064112]
[1755186504622,18.10544236,195.32,195.28,0.03]
[1755186504826,0.66,195.31,195.28,0.03]
[1755186505121,18.10544236,195.29,195.26,0.03]
[1755186505330,18.10544236,195.27,195.21,0.03]
[1755186505492,18.10544236,195.22,195.18,0.03]
[1755186505694,18.76544236,195.21,195.18,0.03]
[1755186505930,0.66,195.2,195.18,0.03]
[1755186506110,18.76544236,195.2,195.18,0.03]
[1755186506613,0.66,195.2,195.18,0.03]
[1755186507016,18.76544236,195.2,195.18,0.03]
[1755186508725,23.88839317,195.2,195.18,0.03]
[1755186510908,64.99460874,195.2,195.18,0.03]
[1755186511113,15.10621557,195.19,195.18,0.03]
[1755186511304,26.0,195.11,195.0,18.10544236]
[1755186511509,18.10544236,195.06,195.0,18.10544236]
[1755186511819,18.10544236,195.06,194.99,18.10544236]
[1755186512210,0.71,195.07,194.99,18.10544236]
[1755186512211,18.10544236,195.05,194.99,18.10544236]
[1755186512433,18.10544236,195.06,195.0,23.2334458]
[1755186512621,0.71,195.05,195.0,5.12800344]
[1755186512940,0.71,195.09,195.0,5.12800344]
[1755186513125,18.81544236,195.09,195.03,18.10544236]
[1755186513323,18.81544236,195.09,195.04,18.10544236]
[1755186513324,0.71,195.09,195.04,18.10544236]
[1755186514112,18.10544236,195.09,195.0,31.12800344]
[1755186514316,18.10544236,195.04,194.98,44.10544236]
[1755186514613,18.81544236,195.04,194.98,18.10544236]
[1755186514845,0.71,195.04,194.97,5.1289942]
[1755186515333,18.81544236,195.04,194.98,18.10544236]
[1755186515717,18.81544236,195.04,194.97,23.23443656]
[1755186515718,18.10544236,195.03,194.97,23.23443656]
[1755186516031,0.71,195.04,194.98,18.10544236]
[1755186516328,0.71,195.04,194.99,18.10544236]
[1755186516546,0.71,195.08,195.03,18.10544236]
[1755186516707,0.71,195.08,195.01,5.12794215]
[1755186516708,18.10544236,195.11,195.05,18.10544236]
[1755186516903,39.82,195.13,195.01,5.12794215]
[1755186516904,18.10544236,195.08,195.03,18.10544236]
[1755186517106,0.71,195.07,195.03,18.10544236]
[1755186517316,18.10544236,195.09,195.01,5.12794215]
[1755186517518,18.81544236,195.1,195.04,18.10544236]
[1755186517737,18.10544236,195.08,195.01,5.12794215]
[1755186517911,18.10544236,195.08,195.02,18.10544236]
[1755186518112,18.10544236,195.11,195.06,18.10544236]
[1755186518327,18.10544236,195.11,195.01,17.94779754]
[1755186518328,0.71,195.1,195.05,18.10544236]
[1755186518542,18.10544236,195.07,195.0,5.12816895]
[1755186518711,18.81544236,195.06,195.0,5.12816895]
[1755186518910,5.12560508,195.1,194.96,5.12925728]
[1755186518911,18.10544236,195.04,194.96,5.12925728]
[1755186519118,18.10544236,195.02,194.96,23.23469964]
[1755186519311,18.10544236,194.98,194.92,23.23575223]
[1755186519511,0.71,195.01,194.93,15.10621557]
[1755186519827,0.71,195.08,195.0,18.10544236]
[1755186520125,0.71,195.08,194.97,15.10621557]
[1755186520126,18.10544236,195.03,194.97,18.10544236]
[1755186520328,0.71,195.08,195.01,18.10544236]
[1755186520537,0.71,195.08,195.03,18.10544236]
[1755186520733,0.71,195.08,195.02,5.1275339]
[1755186520734,18.81544236,195.08,195.02,23.23297626]
[1755186521035,0.71,195.08,195.04,18.10544236]
[1755186521236,0.71,195.07,195.02,18.10544236]
[1755186521432,0.71,195.11,195.05,18.10544236]
[1755186521636,18.10544236,195.1,195.04,18.10544236]
[1755186521934,18.81544236,195.09,195.03,18.10544236]
[1755186522133,18.81544236,195.13,195.07,18.10544236]
[1755186522335,39.82,195.14,195.09,18.10544236]
[1755186522543,12.80554439,195.23,195.11,18.10544236]
[1755186522544,18.81544236,195.16,195.11,18.10544236]
[1755186522726,18.10544236,195.13,195.07,18.10544236]
[1755186522921,18.10544236,195.14,195.08,18.10544236]
[1755186523236,18.10544236,195.17,195.11,18.10544236]
[1755186523617,40.53,195.18,195.1,18.10544236]
[1755186523618,18.10544236,195.16,195.1,18.10544236]
[1755186523818,18.10544236,195.14,195.06,5.1266277]
[1755186524133,0.71,195.13,195.06,23.23207006]
[1755186524329,0.71,195.13,195.08,18.10544236]
[1755186524536,0.71,195.16,195.12,5.12505125]
[1755186524736,18.81544236,195.19,195.13,18.10544236]
[1755186525244,18.10544236,195.17,195.12,23.23049361]
[1755186525446,18.10544236,195.19,195.13,18.10544236]
[1755186525830,40.53,195.2,195.16,18.10544236]
[1755186526150,5.12168173,195.25,195.19,18.10544236]
[1755186526151,0.71,195.23,195.19,18.10544236]
[1755186526332,15.371609,195.25,195.12,43.93767937]
[1755186526333,18.10544236,195.21,195.15,18.10544236]
[1755186526527,18.10544236,195.2,195.15,23.22951009]
[1755186526731,5.12217485,195.23,195.15,23.22951009]
[1755186527048,18.10544236,195.21,195.15,23.22951009]
[1755186527234,18.10544236,195.21,195.15,5.12406773]
[1755186527439,18.10544236,195.21,195.15,23.22951009]
[1755186528130,18.10544236,195.17,195.12,26.0]
[1755186528333,0.71,195.17,195.12,44.10544236]
[1755186528525,0.71,195.21,195.16,18.10544236]
[1755186529653,18.81544236,195.2,195.14,18.10544236]
[1755186529852,18.10544236,195.21,195.15,23.22970574]
[1755186530231,18.10544236,195.21,195.15,18.10544236]
[1755186530431,0.71,195.22,195.15,18.10544236]
[1755186530634,18.10544236,195.2,195.14,23.22993209]
[1755186530832,11.68794308,195.2,195.14,5.12448973]
[1755186531246,12.39794308,195.2,195.13,5.1247886]
[1755186532352,26.06,195.24,195.18,11.68794308]
[1755186532353,26.77,195.24,195.18,11.68794308]
[1755186532533,26.77,195.24,195.13,5.6547886]
[1755186532534,51.48794308,195.22,195.16,11.68794308]
[1755186532739,12.39794308,195.21,195.15,11.68794308]
[1755186533128,0.71,195.21,195.16,11.68794308]
[1755186533333,39.8,195.22,195.17,5.12373827]
[1755186533645,0.71,195.21,195.15,11.68794308]
[1755186534250,0.71,195.21,195.14,11.68794308]
[1755186534946,11.68794308,195.2,195.14,11.68794308]
[1755186535137,0.71,195.19,195.13,5.12473767]
[1755186535431,0.71,195.19,195.14,11.68794308]
[1755186535635,0.71,195.19,195.14,16.81241515]
[1755186535853,0.71,195.19,195.14,11.68794308]
[1755186536043,0.71,195.19,195.14,16.81239613]
[1755186536355,5.12295643,195.2,195.15,11.68794308]
[1755186536536,5.12295643,195.2,195.14,16.81239613]
[1755186536537,0.71,195.18,195.14,16.81239613]
[1755186537063,0.71,195.18,195.14,11.68794308]
[1755186537439,12.39794308,195.17,195.14,79.7]
[1755186537640,0.71,195.16,195.09,0.03]
[1755186537831,11.68794308,195.12,195.09,79.73]
[1755186538032,11.68794308,195.1,195.09,0.03]
[1755186538266,12.39794308,195.1,195.09,0.03]
[1755186538445,51.48794308,195.12,195.09,0.03]
[1755186538646,40.51,195.12,195.09,0.03]
[1755186538872,39.8,195.12,195.09,0.03]
[1755186539163,39.8,195.15,195.1,11.68794308]
[1755186539473,39.8,195.15,195.11,11.68794308]
[1755186539632,39.8,195.15,195.14,11.68794308]
[1755186540245,39.8,195.19,195.14,11.68794308]
[1755186540441,39.8,195.19,195.15,11.68794308]
[1755186540637,39.8,195.19,195.12,26.0]
[1755186541039,39.8,195.19,195.14,11.68794308]
[1755186541237,39.8,195.19,195.13,11.68794308]
[1755186541238,0.7,195.18,195.13,11.68794308]
[1755186541457,0.7,195.18,195.14,11.68794308]
[1755186541665,0.7,195.17,195.13,11.68794308]
[1755186541847,56.61124968,195.19,195.13,11.68794308]
[1755186541848,39.8,195.19,195.14,11.68794308]
[1755186542056,0.7,195.18,195.14,11.68794308]
[1755186542243,4.06762773,195.18,195.14,11.68794308]
[1755186542456,4.06762773,195.17,195.12,16.81295347]
[1755186542651,15.75557081,195.16,195.1,11.68794308]
[1755186542951,11.68794308,195.13,195.09,0.03]
[1755186543155,51.46794308,195.13,195.09,0.03]
[1755186543348,15.76188488,195.12,195.09,0.03]
[1755186543667,11.68794308,195.1,195.09,0.03]
[1755186543862,15.76252407,195.1,195.09,0.03]
[1755186545159,35.03594841,195.1,195.09,0.03]
[1755186545363,11.68794308,195.08,195.07,0.03]
[1755186545571,80.01234455,195.08,195.07,0.03]
[1755186545746,101.78373092,195.08,195.07,0.03]
[1755186546268,107.43441618,195.08,194.97,16.81681014]
[1755186546567,11.68794308,195.03,194.97,11.68794308]
[1755186546774,11.68794308,195.0,194.94,11.68794308]
[1755186546947,11.68794308,194.98,194.92,5.13030987]
[1755186547150,69.16347016,194.99,194.85,0.53]
[1755186547151,11.68794308,194.95,194.85,0.53]
[1755186547357,15.07141324,194.94,194.89,5.23109133]
[1755186547652,43.16347016,194.93,194.89,16.91903441]
[1755186547855,3.38347016,194.92,194.89,16.91903441]
[1755186548046,3.38347016,194.91,194.89,5.23109133]
[1755186548246,3.38347016,194.9,194.89,5.23109959]
[1755186548460,3.38347016,194.9,194.89,0.1]
[1755186549168,3.38347016,194.9,194.89,11.78794308]
[1755186549471,3.38347016,194.9,194.89,0.1]
[1755186550755,4.08347016,194.9,194.89,0.1]
[1755186551274,3.38347016,194.9,194.89,0.1]
[1755186551685,3.38347016,194.92,194.89,0.1]
[1755186551852,3.38347016,194.91,194.89,0.1]
[1755186552059,3.38347016,194.92,194.89,0.1]
[1755186552252,3.38347016,194.91,194.89,0.1]
[1755186552473,15.07039718,194.92,194.89,0.1]
[1755186552674,12.38794308,194.92,194.89,0.1]
[1755186552859,15.77078993,194.91,194.89,0.1]
[1755186553055,0.7,194.91,194.89,0.1]
[1755186553273,15.0710221,194.91,194.89,0.1]
[1755186553463,0.7,194.9,194.89,0.1]
[1755186553668,0.7,194.91,194.89,0.1]
[1755186554261,11.68794308,194.92,194.89,0.1]
[1755186554262,0.7,194.9,194.89,0.1]
[1755186554684,11.68794308,194.92,194.89,0.1]
[1755186554883,11.68794308,194.9,194.89,0.1]
[1755186555265,0.7,194.9,194.89,0.1]
[1755186555776,11.68794308,194.86,194.85,0.03]
[1755186555971,12.38794308,194.86,194.85,0.03]
[1755186556279,31.13167448,194.87,194.85,0.03]
[1755186556280,11.68794308,194.87,194.85,0.03]
[1755186556479,51.46794308,194.86,194.85,0.03]
[1755186556689,52.16794308,194.86,194.85,0.03]
[1755186556878,12.38794308,194.86,194.85,0.03]
[1755186557080,52.16794308,194.86,194.85,0.03]
[1755186557460,40.48,194.86,194.85,0.03]
[1755186557682,11.68794308,194.93,194.86,30.7]
[1755186557860,39.8,194.92,194.87,11.68794308]
[1755186558062,12.38794308,194.98,194.91,11.68794308]
[1755186558379,51.48794308,194.97,194.88,26.0]
[1755186558581,11.68794308,194.96,194.9,11.68794308]
[1755186558776,51.48794308,194.97,194.91,11.68794308]
[1755186558983,39.8,194.97,194.92,11.68794308]
[1755186559565,0.7,195.02,194.96,11.68794308]
[1755186559786,12.38794308,195.05,194.99,11.68794308]
[1755186560096,5.20176599,195.13,195.04,11.68794308]
[1755186560290,5.20176599,195.13,195.08,11.68794308]
[1755186560598,5.20176599,195.13,195.11,11.68794308]
[1755186560797,12.38794308,195.12,195.04,26.0]
[1755186560968,11.68794308,195.1,195.04,11.68794308]
[1755186561163,39.78,195.1,195.05,11.68794308]
[1755186561908,12.38794308,195.09,195.03,11.68794308]
[1755186562186,12.38794308,195.09,194.95,12.82367722]
[1755186562187,5.12610211,195.08,195.01,11.68794308]
[1755186562392,11.68794308,195.08,195.03,11.68794308]
[1755186562568,11.68794308,195.08,195.02,11.68794308]
[1755186562770,11.68794308,195.08,195.01,18.16379861]
[1755186562771,18.16379861,195.07,195.01,18.16379861]
[1755186562971,18.16379861,195.07,195.0,0.63]
[1755186562972,18.16379861,195.06,195.0,18.16379861]
[1755186563171,57.94379861,195.05,194.99,18.16379861]
[1755186563776,0.7,195.04,194.93,0.63]
[1755186563989,18.16379861,195.0,194.94,18.16379861]
[1755186564173,18.16379861,194.99,194.93,18.16379861]
[1755186564576,18.16379861,194.99,194.9,5.76072688]
[1755186564577,23.29222591,195.0,194.94,18.16379861]
[1755186564900,18.16379861,194.98,194.92,18.16379861]
[1755186565293,5.1284273,195.0,194.93,18.16379861]
[1755186565294,18.16379861,194.99,194.93,18.16379861]
[1755186565610,5.1284273,195.0,194.93,18.16379861]
[1755186565778,5.1284273,195.0,194.94,18.16379861]
[1755186565779,23.29222591,195.0,194.94,18.16379861]
[1755186566000,18.16379861,194.99,194.93,18.79379861]
[1755186566174,39.78,195.01,194.96,18.16379861]
[1755186566403,23.29150067,195.02,194.96,18.16379861]
[1755186566701,39.76,195.01,194.97,18.16379861]
[1755186567484,39.76,195.01,195.0,18.16379861]
[1755186567875,0.06,195.08,195.0,18.79379861]
[1755186568080,23.34998023,195.08,195.02,18.16379861]
[1755186568275,5.18614352,195.08,194.99,31.75824222]
[1755186568476,0.06,195.08,195.04,18.16379861]
[1755186568701,0.06,195.08,195.06,18.16379861]
[1755186569299,0.06,195.08,195.04,18.16379861]
[1755186569507,0.06,195.08,195.07,18.16379861]
[1755186570498,0.06,195.08,195.06,18.16379861]
[1755186570706,0.06,195.08,195.05,18.16379861]
[1755186570904,0.06,195.08,195.04,5.12693131]
[1755186571079,0.06,195.08,195.07,18.16379861]
[1755186571281,0.06,195.1,195.09,26.0]
[1755186571492,0.06,195.12,195.1,15.10621557]
[1755186571807,0.06,195.12,195.11,18.16379861]
[1755186572010,0.06,195.12,195.11,18.67379861]
[1755186572173,0.06,195.12,195.11,23.28911253]
[1755186572378,0.06,195.12,195.11,23.79911253]
[1755186572891,0.06,195.12,195.11,64.9053281]
[1755186573294,0.06,195.12,195.11,64.3953281]
[1755186574075,0.06,195.12,195.11,49.28911253]
[1755186574477,0.06,195.12,195.11,49.79911253]
[1755186575113,0.06,195.12,195.11,49.28911253]
[1755186576495,0.06,195.12,195.11,26.0]
[1755186576696,0.06,195.12,195.09,44.16379861]
[1755186577001,0.06,195.12,195.09,18.16379861]
[1755186577197,0.78,195.12,195.09,44.16379861]
[1755186577393,0.78,195.12,195.09,18.16379861]
[1755186577710,0.06,195.12,195.1,18.16379861]
[1755186577910,0.72,195.11,195.08,79.7]
[1755186578092,0.72,195.11,195.08,97.86379861]
[1755186578611,0.06,195.12,195.08,79.7]
[1755186578798,0.72,195.1,195.08,79.7]
[1755186578994,0.06,195.12,195.08,79.7]
[1755186578995,18.16379861,195.11,195.08,79.7]
[1755186579203,0.72,195.09,195.08,79.7]
[1755186579507,0.72,195.09,195.05,0.03]
[1755186579712,0.72,195.08,195.05,0.03]
[1755186580010,18.88379861,195.11,195.05,18.19379861]
[1755186580186,0.72,195.11,195.05,23.32051545]
[1755186580514,0.06,195.12,195.05,23.32051545]
[1755186580515,0.06,195.12,195.09,18.16379861]
[1755186581016,18.16379861,195.1,195.05,79.73]
[1755186581206,0.72,195.09,195.05,79.73]
[1755186581511,0.72,195.08,195.05,79.73]
[1755186581720,0.72,195.08,195.05,97.89379861]
[1755186581887,0.72,195.08,195.05,79.73]
[1755186582087,18.16379861,195.06,195.05,0.03]
[1755186582310,24.01042631,195.06,195.05,0.03]
[1755186582911,0.06,195.12,195.05,0.03]
[1755186583218,0.72,195.1,195.06,18.16379861]
[1755186583994,63.04888822,195.12,195.06,18.16379861]
[1755186584194,0.72,195.09,195.05,0.03]
[1755186584411,0.72,195.09,195.05,18.19379861]
[1755186584612,5.12584057,195.09,195.05,18.19379861]
[1755186584814,0.72,195.08,195.05,0.03]
[1755186585312,0.72,195.08,195.05,11.72928795]
[1755186585616,5.12535084,195.11,195.06,11.69928795]
[1755186585914,5.84535084,195.11,195.06,11.69928795]
[1755186586218,5.84560543,195.1,195.05,11.72928795]
[1755186586415,5.84560543,195.1,195.05,0.03]
[1755186586714,0.72,195.09,195.05,11.72928795]
[1755186587301,0.72,195.08,195.05,0.03]
[1755186587503,0.72,195.07,195.05,0.03]
[1755186587700,0.72,195.06,195.05,0.03]
[1755186587900,0.72,195.09,195.05,0.03]
[1755186588112,0.72,195.08,195.05,0.03]
[1755186588320,5.12560502,195.1,195.05,11.72928795]
[1755186588535,5.84560502,195.1,195.05,11.72928795]
[1755186588822,39.76,195.12,195.06,11.69928795]
[1755186589123,0.06,195.12,195.1,11.69928795]
[1755186589296,0.06,195.12,195.11,11.69928795]
[1755186589497,0.06,195.12,195.11,27.31550352]
[1755186589714,0.06,195.12,195.11,11.69928795]
[1755186590109,0.06,195.12,195.1,79.7]
[1755186590428,0.06,195.12,195.1,96.52478488]
[1755186590999,0.06,195.12,195.11,11.69928795]
[1755186592430,0.06,195.12,195.1,91.39928795]
[1755186592840,0.78,195.12,195.1,91.39928795]
[1755186593024,0.06,195.12,195.11,11.69928795]
[1755186593535,0.06,195.12,195.05,0.03]
[1755186593536,12.47928795,195.12,195.05,0.03]
[1755186593702,0.72,195.11,195.05,0.03]
[1755186593901,11.69928795,195.09,195.05,0.03]
[1755186594105,0.72,195.08,195.05,0.03]
[1755186595034,24.00560413,195.11,195.05,18.19022381]
[1755186596516,24.00560413,195.11,195.05,23.3169669]
[1755186596710,5.84538032,195.11,195.05,23.3169669]
[1755186596905,18.16022381,195.08,195.05,0.03]
[1755186597137,0.72,195.07,195.05,0.03]
[1755186597430,18.16022381,195.09,195.05,0.03]
[1755186597608,0.72,195.07,195.05,0.03]
[1755186597814,24.00560413,195.11,195.05,18.19022381]
[1755186598136,18.16022381,195.1,195.05,0.03]
[1755186598335,0.72,195.1,195.05,18.19022381]
[1755186598542,0.72,195.09,195.05,18.19022381]
[1755186598717,0.72,195.08,195.05,0.03]
[1755186598915,0.72,195.07,195.05,0.03]
[1755186599915,0.72,195.06,195.05,0.03]
[1755186600314,58.54022381,195.1,195.05,0.03]
[1755186600509,0.06,195.11,195.09,18.16022381]
[1755186600715,0.77,195.11,195.08,18.16022381]
[1755186600915,0.71,195.1,195.05,18.19022381]
[1755186601132,0.71,195.09,195.05,18.19022381]
[1755186601335,0.06,195.11,195.07,18.16022381]
[1755186601934,0.77,195.11,195.06,18.16022381]
[1755186602130,0.71,195.1,195.06,18.16022381]
[1755186602440,0.06,195.11,195.09,18.16022381]
[1755186602638,0.06,195.11,195.1,18.16022381]
[1755186602936,0.06,195.11,195.08,18.16022381]
[1755186602937,0.77,195.11,195.08,18.16022381]
[1755186603119,0.06,195.11,195.09,18.16022381]
[1755186603442,0.77,195.11,195.08,18.16022381]
[1755186603623,0.06,195.11,195.1,18.16022381]
[1755186604327,18.93022381,195.11,195.05,0.03]
[1755186604529,18.16022381,195.09,195.05,0.03]
[1755186604841,18.87022381,195.08,195.05,0.03]
[1755186605034,18.16022381,195.08,195.05,0.03]
[1755186605233,0.71,195.07,195.05,0.03]
[1755186605430,39.64,195.1,195.05,97.89022381]
[1755186605630,0.71,195.09,195.05,79.73]
[1755186605926,0.71,195.08,195.05,79.73]
[1755186606133,0.71,195.07,195.05,0.03]
[1755186606327,5.83645387,195.07,195.05,0.03]
[1755186606830,0.71,195.07,195.05,0.03]
[1755186607026,58.51022381,195.1,195.05,0.03]
[1755186607228,0.06,195.11,195.07,18.16022381]
[1755186607534,0.77,195.11,195.07,97.86022381]
[1755186607739,0.06,195.11,195.09,18.16022381]
[1755186607915,0.06,195.11,195.1,18.16022381]
[1755186608455,18.93022381,195.11,195.07,79.7]
[1755186608621,18.93022381,195.11,195.05,18.19022381]
[1755186608622,18.16022381,195.08,195.05,0.03]
[1755186608947,18.16022381,195.06,195.05,0.03]
[1755186609115,18.87022381,195.06,195.05,0.03]
[1755186609444,0.71,195.06,195.05,0.03]
[1755186609636,0.06,195.11,195.05,0.03]
[1755186609637,26.77,195.11,195.05,0.03]
[1755186609833,61.20514002,195.1,195.05,0.03]
[1755186610148,18.87022381,195.09,195.05,0.03]
[1755186610445,0.71,195.08,195.05,0.03]
[1755186610641,0.71,195.07,195.05,0.03]
[1755186610845,18.87022381,195.06,195.05,0.03]
[1755186611342,22.28035999,195.06,195.05,0.03]
[1755186612337,27.40698769,195.06,195.05,0.03]
[1755186612556,0.71,195.09,195.05,0.03]
[1755186612852,3.41212082,195.08,195.05,0.03]
[1755186613140,0.71,195.07,195.05,0.03]
[1755186613559,3.41212082,195.08,195.05,0.03]
[1755186613765,0.06,195.11,195.06,26.51]
[1755186614052,0.06,195.11,195.1,18.16022381]
[1755186614254,0.06,195.11,195.1,18.67022381]
[1755186614462,0.06,195.11,195.1,24.30835809]
[1755186614619,0.06,195.11,195.1,70.11457366]
[1755186615664,0.06,195.11,195.1,69.60457366]
[1755186615840,0.06,195.11,195.1,18.16022381]
[1755186616345,0.06,195.11,195.1,64.47643938]
[1755186616556,0.06,195.11,195.1,70.11457366]
[1755186616848,0.06,195.14,195.13,56.7]
[1755186617147,0.77,195.14,195.09,35.82582646]
[1755186617466,0.71,195.13,195.09,26.0]
[1755186617769,0.71,195.12,195.08,11.68495536]
[1755186618067,0.71,195.11,195.08,11.68495536]
[1755186618368,0.71,195.1,195.07,11.68495536]
[1755186618754,0.71,195.1,195.08,18.15513752]
[1755186619070,0.71,195.1,195.07,18.15513752]
[1755186619369,0.71,195.1,195.05,0.03]
[1755186619370,0.71,195.09,195.05,0.03]
[1755186619549,0.71,195.08,195.05,0.03]
[1755186619744,0.71,195.07,195.05,0.03]
[1755186619952,18.15513752,195.09,195.05,0.03]
[1755186620157,0.71,195.06,195.05,0.03]
[1755186620349,0.71,195.09,195.05,0.03]
[1755186620553,0.06,195.14,195.08,18.15513752]
[1755186620876,0.06,195.14,195.07,0.45]
[1755186621051,5.18454167,195.14,195.1,18.15513752]
[1755186621247,0.71,195.13,195.05,0.03]
[1755186621454,0.71,195.13,195.09,18.15513752]
[1755186621775,0.71,195.13,195.1,18.15513752]
[1755186621969,0.71,195.13,195.09,18.15513752]
[1755186622345,0.71,195.12,195.08,18.15513752]
[1755186622550,0.71,195.11,195.07,18.15513752]
[1755186622845,0.71,195.1,195.06,18.15513752]
[1755186623079,18.86513752,195.09,195.05,0.03]
[1755186623262,18.15513752,195.08,195.05,0.03]
[1755186623470,0.71,195.07,195.05,0.03]
[1755186623656,18.15513752,195.1,195.05,0.03]
[1755186623857,39.62,195.13,195.09,18.15513752]
[1755186624058,3.42115438,195.12,195.1,18.15513752]
[1755186624261,0.06,195.14,195.11,18.15513752]
[1755186624464,3.48098236,195.14,195.13,18.15513752]
[1755186624658,0.06,195.14,195.13,18.15513752]
[1755186624971,0.06,195.14,195.13,113.41135309]
[1755186625479,0.06,195.15,195.13,113.41135309]
[1755186625480,0.06,195.15,195.13,33.71135309]
[1755186625774,0.06,195.15,195.14,18.54513752]
[1755186626375,0.06,195.15,195.14,23.6696635]
[1755186626573,0.06,195.15,195.14,38.77587907]
[1755186627385,1e-08,195.16,195.15,15.10621557]
[1755186627584,1e-08,195.16,195.15,73.76377942]
[1755186627884,1e-08,195.21,195.2,45.80621557]
[1755186628186,0.06,195.26,195.23,41.10621557]
[1755186628483,0.06,195.26,195.23,65.28573305]
[1755186629055,0.06,195.26,195.2,26.0]
[1755186629375,0.06,195.26,195.23,44.15513752]
[1755186629574,18.21513752,195.26,195.17,26.0]
[1755186629870,0.77,195.24,195.2,18.15513752]
[1755186630463,0.06,195.24,195.23,18.15513752]
[1755186630772,0.06,195.24,195.23,33.26135309]
[1755186631079,0.06,195.24,195.23,15.49621557]
[1755186631276,0.06,195.24,195.23,33.65135309]
[1755186631850,0.06,195.24,195.23,73.23135309]
[1755186632051,0.06,195.26,195.25,26.0]
[1755186632278,0.06,195.26,195.25,59.26135309]
[1755186632476,0.06,195.26,195.25,64.77299201]
[1755186632677,1e-08,195.26,195.25,95.52299201]
[1755186633054,1e-08,195.26,195.25,64.77299201]
[1755186633756,1e-08,195.26,195.25,64.38299201]
[1755186633956,1e-08,195.26,195.24,15.10621557]
[1755186634158,1e-08,195.26,195.25,18.15513752]
[1755186634379,1e-08,195.26,195.25,33.26135309]
[1755186634675,1e-08,195.26,195.25,38.38299201]
[1755186635263,1e-08,195.26,195.25,18.15513752]
[1755186636071,1e-08,195.26,195.25,38.38299201]
[1755186638289,1e-08,195.26,195.25,64.38299201]
[1755186638869,1e-08,195.26,195.25,144.08299201]
[1755186639171,1e-08,195.26,195.25,64.38299201]
[1755186639685,1e-08,195.26,195.25,184.5451559]
[1755186639889,1e-08,195.26,195.25,158.03299201]
[1755186640666,0.2,195.3,195.29,15.10621557]
[1755186640859,0.2,195.3,195.29,112.90135308]
[1755186641480,0.2,195.3,195.29,33.26135309]
[1755186641880,0.2,195.3,195.27,65.56]
[1755186641881,0.2,195.3,195.28,15.10621557]
[1755186642071,0.2,195.3,195.29,33.26135309]